bitfinex-derivatives/quotes_ETHF0:USTF0_20250308
["timestamp","ask_amount","ask_price","bid_price","bid_amount"]
[1741399030613,2.9265,2130.0,2129.8,0.93928]
[1741399030906,2.9265,2130.0,2129.6,3.21484573]
[1741399031113,2.9265,2130.0,2129.8,0.93928]
[1741399032107,1.4613,2130.0,2129.8,0.12]
[1741399032409,0.93916,2130.2,2130.0,0.93923]
[1741399032611,0.9392,2130.1,2129.9,4.00324]
[1741399032912,0.93917,2130.2,2129.9,4.00324]
[1741399033110,4.06931,2130.3,2130.1,0.93916]
[1741399033305,0.93914,2130.2,2130.0,0.9392]
[1741399033508,3.1302,2130.3,2129.6,0.00704573]
[1741399033509,3.2078,2130.1,2129.6,0.00704573]
[1741399033708,0.9393,2129.9,2129.7,0.93934]
[1741399034308,3.2078,2130.1,2129.6,0.00704573]
[1741399034508,3.2078,2130.1,2129.6,3.22484573]
[1741399034707,3.1302,2130.3,2129.7,1.489]
[1741399034909,3.1302,2130.3,2129.8,1.4752]
[1741399035102,0.93919,2130.1,2129.9,0.93925]
[1741399035302,3.1302,2130.3,2129.9,0.96925]
[1741399035516,0.93917,2130.2,2129.9,0.96925]
[1741399035813,0.93917,2130.2,2130.0,0.93922]
[1741399036413,3.1302,2130.3,2129.9,2.54824]
[1741399036611,0.93921,2130.1,2129.9,2.54824]
[1741399037707,3.1302,2130.3,2130.0,0.93923]
[1741399037708,0.93917,2130.2,2130.0,0.93923]
[1741399038310,0.9392,2130.1,2129.9,2.54826]
[1741399038715,0.93923,2130.0,2129.9,1.609]
[1741399038911,0.93921,2130.1,2129.9,2.54827]
[1741399039116,0.93923,2130.0,2129.9,1.609]
[1741399039411,0.93923,2130.0,2129.7,3.939]
[1741399039412,0.93933,2129.8,2129.6,0.94642573]
[1741399039711,0.93933,2129.8,2129.6,0.99642573]
[1741399040416,0.93933,2129.8,2129.6,0.99643573]
[1741399040714,5.74159,2129.9,2129.7,0.93934]
[1741399041116,0.93931,2129.8,2129.6,0.94641573]
[1741399041317,1.5945,2129.9,2129.7,0.93936]
[1741399041517,1.5945,2129.9,2129.8,0.93931]
[1741399041815,2.53379,2129.9,2129.7,0.93934]
[1741399042217,0.93933,2129.8,2129.6,0.94642573]
[1741399042416,0.93933,2129.8,2129.6,1.02642573]
[1741399043111,2.5338,2129.9,2129.7,0.93936]
[1741399043712,2.5338,2129.9,2129.6,0.00704573]
[1741399043914,2.5338,2129.9,2129.6,1.03641573]
[1741399044514,2.5338,2129.9,2129.6,0.09704573]
[1741399044715,2.5338,2129.9,2129.7,0.93935]
[1741399045218,2.5338,2129.9,2129.6,0.94641573]
[1741399045513,2.53378,2129.9,2129.7,0.93933]
[1741399045923,2.53378,2129.9,2129.6,0.00704573]
[1741399046221,2.53378,2129.9,2129.7,0.93934]
[1741399046619,2.53378,2129.9,2129.7,0.93935]
[1741399047712,1.5945,2129.9,2129.7,0.93933]
[1741399047917,1.5945,2129.9,2129.6,0.94642573]
[1741399048120,1.5945,2129.9,2129.6,1.02642573]
[1741399048420,2.53381,2129.9,2129.7,0.93934]
[1741399049021,1.5945,2129.9,2129.6,0.00704573]
[1741399049225,0.93932,2129.8,2129.6,1.03641573]
[1741399049522,0.93936,2129.7,2129.6,0.00704573]
[1741399050316,1.61,2129.8,2129.6,0.00704573]
[1741399051124,0.93936,2129.7,2129.6,0.00704573]
[1741399052616,4.14716,2129.7,2129.6,0.00704573]
[1741399053125,5.14870816,2129.7,2129.6,0.00704573]
[1741399054534,4.14716,2129.7,2129.6,0.00704573]
[1741399058328,2.54933,2129.8,2129.6,0.94644573]
[1741399058531,1.61,2129.8,2129.6,0.00704573]
[1741399058730,2.54933,2129.8,2129.6,0.94643573]
[1741399058929,2.54933,2129.8,2129.7,0.93936]
[1741399058930,1.61,2129.8,2129.7,0.93936]
[1741399059130,1.61,2129.8,2129.7,3.0399]
[1741399059532,1.61,2129.8,2129.7,3.97926]
[1741399060233,1.61,2129.8,2129.7,3.0399]
[1741399060440,1.61,2129.8,2129.7,3.97926]
[1741399061339,1.61,2129.8,2129.7,3.0399]
[1741399061539,1.61,2129.8,2129.7,3.97926]
[1741399061741,2.54931,2129.8,2129.7,3.0399]
[1741399061935,1.61,2129.8,2129.7,3.97926]
[1741399062242,0.9393,2129.9,2129.7,3.97926]
[1741399062435,1.4803,2130.1,2129.7,3.0499]
[1741399062636,5.62732,2130.1,2129.9,0.93926]
[1741399062944,4.14702,2130.1,2129.9,0.93925]
[1741399063443,0.93914,2130.2,2130.0,0.9392]
[1741399063738,2.46872,2130.3,2130.1,4.05878]
[1741399064540,2.46872,2130.3,2130.1,3.1196]
[1741399064942,2.46872,2130.3,2130.1,4.05878]
[1741399065343,1.5296,2130.3,2130.1,3.1196]
[1741399065540,0.93914,2130.2,2130.1,3.1196]
[1741399066145,2.46872,2130.3,2130.1,3.1196]
[1741399066445,2.46872,2130.3,2130.1,4.05877]
[1741399066648,4.7597,2130.4,2130.3,0.93909]
[1741399066939,21.2189582,2130.5,2130.4,0.93905]
[1741399067144,12.16949968,2130.5,2130.4,0.94905]
[1741399067642,0.9458399,2130.9,2130.7,0.93889]
[1741399067840,0.0069899,2130.9,2130.8,0.93887]
[1741399068038,0.0069899,2130.9,2130.8,4.14667]
[1741399068746,3.2078,2131.4,2131.2,0.93869]
[1741399068947,3.2078,2131.4,2131.3,0.93865]
[1741399069245,0.93853,2131.6,2131.4,0.93861]
[1741399069446,1.4928,2131.7,2131.1,3.2078]
[1741399069746,1.4896,2131.9,2131.6,0.93851]
[1741399069948,5.6518,2132.0,2131.8,0.93841]
[1741399069949,3.2078,2132.0,2131.8,0.93841]
[1741399070244,3.21484573,2132.0,2131.8,0.93841]
[1741399070443,3.21484573,2132.0,2131.9,0.93839]
[1741399070946,3.2078,2132.3,2132.2,0.93826]
[1741399071143,3.2078,2132.3,2131.9,4.01]
[1741399071144,3.2078,2132.6,2132.1,5.6508]
[1741399071336,3.2078,2132.6,2132.1,7.9308]
[1741399071646,0.93799,2132.8,2132.1,7.9308]
[1741399072236,0.00704573,2132.7,2132.4,4.14597]
[1741399072543,0.00704573,2132.7,2132.4,4.14595]
[1741399073349,0.00704573,2132.7,2132.6,0.93808]
[1741399073644,4.14571,2133.0,2132.6,0.93804]
[1741399073846,4.14571,2133.0,2132.6,2.45804]
[1741399074042,3.2078,2133.0,2132.6,1.52]
[1741399074343,0.93804,2132.7,2132.5,2.442]
[1741399074544,3.2078,2133.0,2132.4,3.5584003]
[1741399074740,3.2078,2133.0,2132.4,3.2078]
[1741399074942,6.1908,2133.0,2132.4,3.2078]
[1741399075142,0.93809,2132.6,2132.4,3.2078]
[1741399075339,0.93812,2132.5,2132.4,3.2078]
[1741399075645,0.93809,2132.6,2132.4,3.2078]
[1741399075853,0.93812,2132.5,2132.4,3.2078]
[1741399076052,6.1908,2133.0,2132.4,3.2078]
[1741399076250,6.1908,2133.0,2132.4,4.14595]
[1741399076251,0.93803,2132.8,2132.4,4.14595]
[1741399076445,0.93803,2132.8,2132.4,4.14593]
[1741399076641,0.93803,2132.8,2132.5,0.93811]
[1741399076842,0.93803,2132.8,2132.4,4.14595]
[1741399077044,0.93803,2132.8,2132.5,0.9381]
[1741399077245,3.2078,2133.3,2132.8,0.93797]
[1741399077551,0.93787,2133.1,2132.8,0.93799]
[1741399078148,0.93785,2133.2,2132.9,0.93794]
[1741399078351,0.93788,2133.1,2132.8,0.93797]
[1741399078547,3.2078,2133.3,2132.8,3.2078]
[1741399078747,4.14559,2133.3,2132.9,0.93793]
[1741399079150,0.93782,2133.2,2132.8,4.14577]
[1741399079451,0.93792,2133.0,2132.7,1.4735]
[1741399079757,0.93791,2133.0,2132.7,1.4735]
[1741399080752,0.93791,2133.0,2132.7,3.9135]
[1741399080753,0.93793,2133.0,2132.7,3.9135]
[1741399081050,0.93793,2133.0,2132.7,1.4735]
[1741399082457,3.2078,2133.3,2132.6,1.6129]
[1741399082756,3.2078,2133.3,2132.3,4.83769]
[1741399082757,3.2078,2133.0,2132.3,4.83769]
[1741399082958,3.2078,2132.7,2132.2,0.00704573]
[1741399083155,0.9382,2132.4,2132.2,0.00704573]
[1741399083957,3.2078,2132.7,2132.2,0.00704573]
[1741399084160,0.9381,2132.6,2132.3,0.93821]
[1741399084361,0.93813,2132.5,2132.2,0.94528573]
[1741399084753,3.2078,2132.7,2132.2,0.00704573]
[1741399085059,0.93821,2132.3,2132.2,0.00704573]
[1741399085260,4.14601,2132.3,2132.2,0.00704573]
[1741399085461,0.93821,2132.3,2132.2,0.00704573]
[1741399085861,0.93819,2132.4,2132.2,0.00704573]
[1741399086255,0.93821,2132.3,2132.2,0.00704573]
[1741399087456,0.93818,2132.4,2132.2,0.00704573]
[1741399087763,0.93821,2132.3,2132.2,0.00704573]
[1741399087955,6.1908,2132.6,2132.2,0.00704573]
[1741399088261,0.93819,2132.4,2132.2,0.00704573]
[1741399089063,0.93821,2132.3,2132.2,0.00704573]
[1741399089268,0.93819,2132.4,2132.2,0.00704573]
[1741399089563,0.93821,2132.3,2132.2,0.00704573]
[1741399089759,3.2078,2132.6,2132.2,0.00704573]
[1741399090162,0.93819,2132.4,2132.2,0.00704573]
[1741399090356,0.93814,2132.5,2132.2,0.94526573]
[1741399090557,0.93819,2132.4,2132.2,0.00704573]
[1741399090864,0.93818,2132.4,2132.2,0.00704573]
[1741399091259,0.93818,2132.4,2132.2,0.94530573]
[1741399091865,3.2078,2132.6,2132.2,0.00704573]
[1741399092062,6.2702,2132.9,2132.2,0.03704573]
[1741399092356,6.2702,2132.9,2132.3,0.93819]
[1741399092558,0.93821,2132.3,2132.2,0.00704573]
[1741399093359,3.2078,2132.6,2132.2,0.00704573]
[1741399093759,0.93806,2132.7,2132.2,0.00704573]
[1741399094164,0.93806,2132.7,2132.5,0.9381]
[1741399094365,0.93812,2132.5,2132.3,2.5155]
[1741399094666,0.93809,2132.6,2132.4,0.93815]
[1741399095155,3.2078,2132.6,2132.2,0.94527573]
[1741399095355,0.93812,2132.5,2132.2,0.94527573]
[1741399095562,0.93818,2132.4,2132.2,0.94527573]
[1741399095763,0.93818,2132.4,2132.2,0.00704573]
[1741399096164,0.93818,2132.4,2132.2,0.94528573]
[1741399096964,0.93818,2132.4,2132.2,0.00704573]
[1741399097160,0.93818,2132.4,2132.2,0.94529573]
[1741399098269,0.93821,2132.3,2132.2,0.00704573]
[1741399098565,3.2078,2132.6,2132.2,0.94527573]
[1741399098869,0.93817,2132.4,2132.2,0.94527573]
[1741399099364,3.2078,2132.6,2132.2,0.94527573]
[1741399099762,0.93816,2132.5,2132.2,0.94527573]
[1741399099962,0.93817,2132.4,2132.2,0.94527573]
[1741399102661,3.2078,2132.6,2132.2,0.00704573]
[1741399102965,0.93816,2132.5,2132.2,2.44816573]
[1741399103166,0.93818,2132.4,2132.2,2.44816573]
[1741399103369,0.93817,2132.5,2132.2,1.50994573]
[1741399103571,3.2078,2132.6,2132.2,1.50994573]
[1741399103772,3.2078,2132.6,2132.2,2.44816573]
[1741399104072,0.93809,2132.6,2132.4,0.93815]
[1741399104470,6.2702,2132.9,2132.2,1.50994573]
[1741399104662,0.93808,2132.6,2132.4,0.93813]
[1741399104867,0.93805,2132.7,2132.5,0.93811]
[1741399105066,3.2078,2133.2,2132.6,2.435]
[1741399105267,2.9764,2133.4,2132.8,2.34499]
[1741399105567,0.93782,2133.2,2132.8,2.04]
[1741399105767,0.93782,2133.2,2132.9,0.93793]
[1741399105974,0.93792,2133.0,2132.7,2.50021]
[1741399106272,4.6659,2133.3,2132.6,3.9258]
[1741399106466,0.93793,2133.0,2132.7,0.93801]
[1741399106863,0.93796,2132.9,2132.6,4.86385]
[1741399107070,1.5128,2133.2,2132.6,1.5308]
[1741399107279,0.93788,2133.1,2132.6,1.5308]
[1741399107574,4.6659,2133.3,2133.0,0.93789]
[1741399107768,5.60369,2133.3,2132.6,1.4908]
[1741399107965,1.4581,2133.3,2133.1,0.93784]
[1741399108268,1.4581,2133.3,2133.1,0.93786]
[1741399108469,1.5183,2133.5,2133.0,2.434]
[1741399108669,1.5183,2133.5,2133.3,0.93776]
[1741399108870,2.456,2133.5,2133.2,0.93778]
[1741399109173,2.456,2133.5,2133.2,0.93782]
[1741399109575,2.456,2133.5,2133.3,0.93777]
[1741399109777,2.456,2133.5,2133.1,1.598]
[1741399109972,2.456,2133.5,2133.2,0.9378]
[1741399110172,2.456,2133.5,2133.1,1.598]
[1741399110173,3.2078,2133.6,2133.1,4.8058]
[1741399110472,0.93771,2133.5,2133.2,0.93779]
[1741399110876,3.2078,2133.6,2133.4,0.93771]
[1741399110877,4.14547,2133.6,2133.4,0.93771]
[1741399111078,0.93771,2133.5,2133.1,4.8058]
[1741399111279,4.14547,2133.6,2133.3,0.94481573]
[1741399111876,3.2078,2133.6,2133.3,0.00704573]
[1741399112269,0.93773,2133.4,2133.3,0.00704573]
[1741399114475,0.93793,2133.0,2132.8,3.2078]
[1741399114670,6.217,2133.3,2132.8,3.2078]
[1741399114874,6.217,2133.3,2132.9,0.93793]
[1741399115079,0.93788,2133.1,2132.9,0.93793]
[1741399115475,0.93788,2133.1,2132.6,2.433]
[1741399115673,0.93788,2133.1,2132.8,0.94501573]
[1741399116484,2.55267573,2133.2,2132.9,0.93791]
[1741399117481,1.61484573,2133.2,2133.0,0.93786]
[1741399117777,1.61484573,2133.2,2132.8,0.00704573]
[1741399117988,0.93795,2132.9,2132.8,0.00704573]
[1741399118980,1.5118,2133.1,2132.8,0.00704573]
[1741399119281,0.93795,2132.9,2132.8,0.00704573]
[1741399119483,0.93794,2133.0,2132.8,0.00704573]
[1741399119880,1.5118,2133.1,2132.8,0.00704573]
[1741399120184,0.93795,2132.9,2132.8,0.00704573]
[1741399120883,4.14572,2133.0,2132.8,0.00704573]
[1741399121179,3.2078,2133.0,2132.8,0.00704573]
[1741399121375,0.93795,2132.9,2132.8,0.00704573]
[1741399121776,4.14574,2133.0,2132.8,0.00704573]
[1741399122079,0.93795,2132.9,2132.8,0.00704573]
[1741399125677,3.2078,2133.0,2132.8,0.00704573]
[1741399126186,0.93795,2132.9,2132.8,0.00704573]
[1741399127182,3.2078,2133.0,2132.8,0.94502573]
[1741399127183,4.14571,2133.0,2132.8,0.94502573]
[1741399127688,1.61484573,2133.2,2132.8,0.00704573]
[1741399127983,0.93795,2132.9,2132.8,0.00704573]
[1741399128176,1.61484573,2133.2,2132.8,0.00704573]
[1741399128585,2.55269573,2133.2,2132.9,0.93792]
[1741399128886,1.61484573,2133.2,2133.0,0.93788]
[1741399129086,1.61484573,2133.2,2132.8,0.00704573]
[1741399129087,2.55266573,2133.2,2132.9,0.93792]
[1741399129285,2.55266573,2133.2,2133.0,0.93788]
[1741399129483,1.61484573,2133.2,2133.0,0.93788]
[1741399129682,2.55268573,2133.2,2133.0,0.93788]
[1741399129881,2.55267573,2133.2,2133.0,0.93788]
[1741399130085,1.61484573,2133.2,2133.1,0.93786]
[1741399130381,1.61484573,2133.2,2132.9,3.2078]
[1741399130688,1.61484573,2133.2,2132.8,0.00704573]
[1741399130881,0.93793,2133.0,2132.8,0.00704573]
[1741399131191,0.93789,2133.1,2132.8,0.94500573]
[1741399132188,0.93789,2133.1,2132.8,0.00704573]
[1741399132385,3.08914573,2133.2,2132.8,0.00704573]
[1741399132687,0.93793,2133.0,2132.8,0.00704573]
[1741399134083,0.93793,2133.0,2132.8,0.94502573]
[1741399134683,0.93795,2132.9,2132.8,0.00704573]
[1741399134987,0.93792,2133.0,2132.8,0.94502573]
[1741399135384,0.93794,2133.0,2132.8,0.00704573]
[1741399135590,0.93794,2133.0,2132.8,0.94503573]
[1741399136387,0.93794,2133.0,2132.8,0.00704573]
[1741399136986,0.93795,2132.9,2132.8,0.00704573]
[1741399137295,3.08914573,2133.2,2132.8,0.00704573]
[1741399137488,0.93795,2132.9,2132.8,0.00704573]
[1741399138493,3.08914573,2133.2,2132.8,0.00704573]
[1741399138695,0.93795,2132.9,2132.8,0.00704573]
[1741399139101,3.08914573,2133.2,2132.8,0.00704573]
[1741399139593,0.93788,2133.1,2132.9,0.93793]
[1741399139993,0.93788,2133.1,2132.9,0.93795]
[1741399140194,3.08914573,2133.2,2132.9,0.93795]
[1741399140389,3.08914573,2133.2,2132.8,1.48924573]
[1741399140390,1.61484573,2133.2,2132.8,4.69704573]
[1741399140701,2.55266573,2133.2,2133.0,0.93788]
[1741399141185,1.61484573,2133.2,2132.8,4.69704573]
[1741399141382,1.61484573,2133.2,2133.0,0.93788]
[1741399142293,1.61484573,2133.2,2133.1,0.93786]
[1741399142688,1.61484573,2133.2,2132.8,4.69704573]
[1741399143187,1.61484573,2133.2,2133.1,0.93786]
[1741399143582,1.61484573,2133.2,2132.8,4.69704573]
[1741399143791,1.61484573,2133.2,2133.1,0.93786]
[1741399143792,0.00704573,2133.2,2133.1,0.93786]
[1741399144084,0.00704573,2133.2,2132.8,4.69704573]
[1741399144295,0.93789,2133.1,2132.8,2.42721573]
[1741399144803,1.54414573,2133.2,2132.8,1.48924573]
[1741399144994,0.93793,2133.0,2132.8,1.48924573]
[1741399145691,3.05124573,2133.2,2132.8,2.42720573]
[1741399145891,0.93786,2133.1,2132.8,2.42720573]
[1741399146093,0.00704573,2133.2,2133.1,0.93786]
[1741399147691,0.94486573,2133.2,2133.0,0.93789]
[1741399147886,0.94486573,2133.2,2132.8,4.69704573]
[1741399148188,0.00704573,2133.2,2133.1,0.93786]
[1741399150100,0.00704573,2133.2,2133.0,0.93788]
[1741399150298,0.00704573,2133.2,2133.1,0.93786]
[1741399152491,0.00704573,2133.2,2133.1,2.48536]
[1741399156095,3.47226472,2133.6,2133.1,4.7553]
[1741399156400,3.47226472,2133.6,2133.4,0.93773]
[1741399156599,3.47226472,2133.6,2133.4,0.93772]
[1741399156900,2.47015,2133.6,2133.4,0.93772]
[1741399157094,2.47015,2133.6,2133.1,4.7553]
[1741399157095,0.93771,2133.5,2133.2,0.93782]
[1741399157295,0.93771,2133.5,2133.3,0.93776]
[1741399158304,1.5325,2133.6,2133.1,5.11220661]
[1741399158505,2.47017,2133.6,2133.1,5.11220661]
[1741399158804,2.47017,2133.6,2133.3,0.93774]
[1741399159397,2.47017,2133.6,2133.1,5.11220661]
[1741399159594,2.47017,2133.6,2133.2,0.93782]
[1741399159807,2.47017,2133.6,2133.3,1.5335]
[1741399160000,1.5325,2133.6,2133.3,1.5335]
[1741399160202,0.93771,2133.5,2133.3,2.47126]
[1741399160604,3.2078,2133.4,2132.8,0.00704573]
[1741399160805,3.2078,2133.1,2132.8,0.00704573]
[1741399161000,2.43152,2133.0,2132.8,0.94503573]
[1741399161602,1.4936,2133.0,2132.8,0.94503573]
[1741399162508,2.43151,2133.0,2132.8,0.94503573]
[1741399162705,1.4936,2133.0,2132.8,0.00704573]
[1741399162910,1.4936,2133.0,2132.8,0.94501573]
[1741399163613,2.4315,2133.0,2132.8,0.94501573]
[1741399163806,1.4936,2133.0,2132.8,0.94501573]
[1741399164312,2.4315,2133.0,2132.8,0.00704573]
[1741399164607,0.93795,2132.9,2132.8,0.00704573]
[1741399164812,2.9494,2132.9,2132.8,0.00704573]
[1741399165015,1.4565,2132.9,2132.8,0.94503573]
[1741399165212,1.4565,2132.9,2132.8,0.00704573]
[1741399165716,1.4565,2132.9,2132.8,0.94503573]
[1741399165914,1.4936,2133.0,2132.9,0.93795]
[1741399168820,1.4936,2133.0,2132.8,1.59414573]
[1741399169222,1.4936,2133.0,2132.9,0.93795]
[1741399170724,1.4936,2133.0,2132.8,2.53212573]
[1741399171219,0.93789,2133.1,2132.8,2.53212573]
[1741399171220,1.6083,2133.2,2132.9,0.93791]
[1741399171417,4.11625,2133.2,2132.9,0.93791]
[1741399171617,4.11625,2133.2,2133.0,0.93789]
[1741399171819,4.11625,2133.2,2132.9,0.93792]
[1741399172124,3.1784,2133.2,2132.9,0.93792]
[1741399172321,0.93786,2133.1,2132.9,0.93792]
[1741399172623,3.1784,2133.2,2132.8,0.00704573]
[1741399172924,0.9379,2133.1,2132.8,0.94501573]
[1741399174126,0.9379,2133.1,2132.9,0.93794]
[1741399174329,0.9379,2133.1,2132.8,0.00704573]
[1741399174619,3.1784,2133.2,2132.8,0.00704573]
[1741399174815,1.6083,2133.2,2132.8,1.62484573]
[1741399175016,3.2078,2133.4,2132.9,1.491]
[1741399175220,2.44001,2133.5,2133.2,0.93778]
[1741399175422,1.5023,2133.5,2133.0,3.9856]
[1741399175619,1.5023,2133.5,2133.4,0.93773]
[1741399176022,1.5023,2133.5,2133.3,0.93775]
[1741399176221,1.5023,2133.5,2133.4,0.93773]
[1741399176926,1.5977,2133.7,2133.0,9.53811]
[1741399177227,1.5977,2133.7,2133.5,0.93765]
[1741399177925,0.93768,2133.5,2133.4,2.421]
[1741399178125,1.5977,2133.7,2133.4,2.421]
[1741399178321,0.93768,2133.5,2133.4,2.421]
[1741399179123,1.5977,2133.7,2133.4,2.421]
[1741399179428,0.93764,2133.6,2133.4,2.421]
[1741399180427,0.93768,2133.5,2133.4,2.421]
[1741399180823,1.5977,2133.7,2133.4,2.421]
[1741399181022,0.93767,2133.6,2133.4,2.421]
[1741399181224,0.93768,2133.5,2133.4,2.421]
[1741399181523,0.93767,2133.6,2133.4,3.35873]
[1741399181724,1.5977,2133.7,2133.4,2.421]
[1741399182024,1.5977,2133.7,2133.6,0.93764]
[1741399182327,2.53531,2133.7,2133.5,0.93767]
[1741399182528,2.53531,2133.7,2133.5,0.93765]
[1741399182827,2.53531,2133.7,2133.5,0.93764]
[1741399183023,1.5977,2133.7,2133.5,0.93764]
[1741399183216,3.2078,2133.8,2133.4,2.421]
[1741399183422,0.93757,2133.8,2133.6,0.93762]
[1741399183826,3.1447,2134.0,2133.5,2.9526]
[1741399184030,1.5758,2134.0,2133.6,3.2078]
[1741399184321,2.51327,2134.0,2133.6,3.2078]
[1741399184526,0.93754,2133.9,2133.6,0.9376]
[1741399184730,2.51328,2134.0,2133.7,0.93758]
[1741399185026,2.51328,2134.0,2133.8,0.93755]
[1741399185625,1.5758,2134.0,2133.8,0.93755]
[1741399185822,2.51328,2134.0,2133.8,0.93755]
[1741399186330,2.51328,2134.0,2133.6,3.2078]
[1741399186623,1.5758,2134.0,2133.8,0.93751]
[1741399186933,0.93754,2133.9,2133.6,0.93761]
[1741399187127,2.51329,2134.0,2133.7,0.93757]
[1741399187423,2.51329,2134.0,2133.5,2.9526]
[1741399187424,1.5758,2134.0,2133.8,0.93754]
[1741399187724,2.51329,2134.0,2133.8,0.93754]
[1741399188428,1.5758,2134.0,2133.6,3.2078]
[1741399188728,1.5758,2134.0,2133.8,0.93752]
[1741399189023,5.73864,2134.1,2133.6,3.2078]
[1741399189024,1.5934,2134.1,2133.9,0.93749]
[1741399189227,4.7751,2134.4,2133.8,2.419]
[1741399189427,5.71241,2134.4,2134.0,0.93745]
[1741399189622,1.5023,2134.3,2134.0,0.93745]
[1741399190221,1.5023,2134.3,2134.0,0.93746]
[1741399190621,1.5023,2134.3,2133.9,3.06712905]
[1741399190622,0.93739,2134.2,2133.9,3.06712905]
[1741399190830,0.93739,2134.2,2133.9,4.00461905]
[1741399191233,2.43966,2134.3,2134.0,0.93742]
[1741399191529,2.43966,2134.3,2134.0,0.93746]
[1741399191929,2.43966,2134.3,2133.9,3.06712905]
[1741399192127,0.93746,2134.0,2133.9,0.00702905]
[1741399192626,4.05446,2134.0,2133.9,0.00702905]
[1741399193935,3.117,2134.0,2133.9,0.00702905]
[1741399194136,1.602,2134.0,2133.9,0.00702905]
[1741399194336,1.602,2134.0,2133.9,0.94453905]
[1741399194742,2.53946,2134.0,2133.9,0.00702905]
[1741399195332,2.53946,2134.0,2133.9,0.94453905]
[1741399195333,1.602,2134.0,2133.9,0.94453905]
[1741399195841,1.602,2134.0,2133.9,0.00702905]
[1741399196233,1.602,2134.0,2133.9,0.94453905]
[1741399196630,1.602,2134.0,2133.9,0.00702905]
[1741399197537,1.602,2134.0,2133.9,0.94453905]
[1741399197838,1.602,2134.0,2133.9,0.00702905]
[1741399198245,2.53946,2134.0,2133.9,0.00702905]
[1741399200829,1.602,2134.0,2133.9,0.00702905]
[1741399201028,2.53946,2134.0,2133.9,0.00702905]
[1741399201937,0.93765,2133.6,2133.4,4.14549]
[1741399202138,3.2078,2133.8,2133.5,0.93768]
[1741399202340,3.2078,2133.8,2133.4,3.2078]
[1741399202539,0.93753,2133.9,2133.7,0.9376]
[1741399203245,0.93752,2133.9,2133.7,0.93757]
[1741399203546,0.93755,2133.8,2133.6,0.00702905]
[1741399203742,0.93755,2133.8,2133.6,0.94464905]
[1741399204645,1.60897347,2134.0,2133.6,0.00702905]
[1741399204846,0.9376,2133.7,2133.6,0.00702905]
[1741399205146,3.2078,2133.8,2133.6,0.00702905]
[1741399205447,0.9376,2133.7,2133.6,0.00702905]
[1741399205837,4.14538,2133.8,2133.6,0.94466905]
[1741399206338,1.5899,2133.9,2133.8,0.93755]
[1741399206545,1.60897347,2134.0,2133.8,0.93754]
[1741399206743,2.983,2134.3,2133.8,0.02]
[1741399206945,3.2078,2134.5,2134.4,0.93729]
[1741399207347,3.0785,2134.7,2134.6,0.9372]
[1741399207944,3.0785,2134.7,2134.3,4.8051]
[1741399208144,1.5899,2134.7,2134.3,1.6373]
[1741399208544,1.5899,2134.7,2134.2,2.415]
[1741399208747,3.2078,2134.5,2134.2,3.35236]
[1741399209141,3.2078,2134.5,2134.4,0.93729]
[1741399209347,1.5232,2134.6,2134.2,2.415]
[1741399209548,1.5232,2134.6,2134.5,0.93724]
[1741399210248,1.5232,2134.6,2134.4,0.93726]
[1741399211349,1.5232,2134.6,2134.5,0.93724]
[1741399211946,3.2078,2134.8,2134.7,0.93716]
[1741399213853,3.273,2134.9,2134.7,0.93716]
[1741399214353,3.273,2134.9,2134.8,0.93711]
[1741399214852,2.413,2135.4,2135.3,0.93689]
[1741399214853,3.2078,2135.4,2135.3,0.93689]
[1741399215556,3.2078,2135.4,2135.2,0.93689]
[1741399215849,4.14466,2135.4,2135.1,0.94398905]
[1741399216062,4.14466,2135.4,2135.2,0.93693]
[1741399216255,3.2078,2135.4,2135.2,0.93693]
[1741399216451,3.2078,2135.4,2135.3,0.93689]
[1741399218665,3.2078,2135.4,2134.7,3.2078]
[1741399218952,0.93706,2135.0,2134.6,0.93719]
[1741399219151,1.5073,2134.9,2134.8,0.93711]
[1741399219858,1.5073,2134.9,2134.7,0.93712]
[1741399220151,1.5073,2134.9,2134.6,0.00702905]
[1741399220152,1.5073,2134.9,2134.8,0.93711]
[1741399220362,2.44437,2134.9,2134.7,0.93713]
[1741399220552,3.2078,2134.8,2134.7,0.93713]
[1741399221354,0.93716,2134.7,2134.6,0.00702905]
[1741399221553,1.5235,2134.7,2134.2,0.93735]
[1741399221753,0.93731,2134.4,2134.1,2.51939]
[1741399221957,3.2078,2134.5,2134.1,1.582]
[1741399222260,3.2078,2134.2,2133.4,5.6188]
[1741399222450,4.00745,2134.1,2133.8,0.93752]
[1741399222649,4.01447905,2134.1,2133.8,0.93752]
[1741399222854,4.01444905,2134.1,2133.8,0.93753]
[1741399223353,4.01444905,2134.1,2133.6,0.00702905]
[1741399223562,0.00702905,2134.1,2134.0,0.93746]
[1741399223754,0.00702905,2134.1,2134.0,0.94746]
[1741399223956,0.00702905,2134.1,2134.0,0.93746]
[1741399224153,1.5778,2134.5,2134.4,0.93729]
[1741399224457,4.14493,2134.8,2134.5,0.93723]
[1741399224759,5.72273,2134.8,2134.5,0.93723]
[1741399225154,5.72273,2134.8,2134.2,2.411]
[1741399225355,5.72273,2134.8,2134.5,0.93722]
[1741399225556,4.7856,2134.8,2134.2,7.84032]
[1741399225757,2.41802905,2134.9,2134.2,7.84032]
[1741399225758,0.00702905,2134.9,2134.8,0.93711]
[1741399225955,0.00702905,2134.9,2134.2,11.04812]
[1741399226158,0.00702905,2134.9,2134.8,0.93711]
[1741399226761,0.00702905,2134.9,2134.5,1.6367]
[1741399227059,0.00702905,2134.9,2134.7,0.93714]
[1741399227249,2.57401905,2134.9,2134.5,1.6367]
[1741399227452,2.57401905,2134.9,2134.7,0.93715]
[1741399227654,1.63692905,2134.9,2134.7,0.93715]
[1741399228363,1.63692905,2134.9,2134.5,1.6367]